fUST/lending_fUST_20240329
["ID","MTS","AMOUNT","RATE_DAILY","PERIOD"]
[320905640,1711685445013,-500.0,0.00052054,120]
[320905642,1711685445022,-500.0,0.00052054,120]
[320905644,1711685445031,-500.0,0.00052054,120]
[320905646,1711685445040,-500.0,0.00052054,120]
[320905648,1711685445050,-500.0,0.00052054,120]
[320905650,1711685445059,-503.16421543,0.00052054,120]
[320905652,1711685445069,-523.58,0.00052054,120]
[320905654,1711685445078,-2693.47,0.00052054,120]
[320905656,1711685445087,-500.0,0.00052054,120]
[320905658,1711685445096,-500.0,0.00052054,120]
[320905660,1711685445105,-500.0,0.00052054,120]
[320905662,1711685445114,-500.0,0.00052876,120]
[320905664,1711685445123,-500.0,0.00052876,120]
[320905666,1711685445133,-500.0,0.00052876,120]
[320905668,1711685445143,-500.0,0.00052876,120]
[320905670,1711685445152,-500.0,0.00052876,2]
[320905672,1711685445162,-500.0,0.00052876,120]
[320905673,1711685445170,-500.0,0.00052876,120]
[320905675,1711685445179,-501.47988353,0.00052876,120]
[320905676,1711685445189,-500.0,0.00052876,120]
[320905678,1711685445200,-500.0,0.00052876,120]
[320905680,1711685445209,-318.42525367,0.00052876,120]
[320905682,1711685445218,-500.0,0.00052876,120]
[320905684,1711685445228,-500.0,0.00052876,120]
[320905686,1711685445238,-500.0,0.00052876,120]
[320905688,1711685445247,-500.0,0.00052876,120]
[320905690,1711685445256,-500.0,0.00052876,120]
[320905692,1711685445266,-500.0,0.00052876,120]
[320905694,1711685445275,-500.0,0.00052876,120]
[320905696,1711685445285,-500.0,0.00052876,120]
[320905698,1711685445295,-502.23026952,0.00052876,120]
[320905700,1711685445304,-500.0,0.00052876,120]
[320905702,1711685445315,-500.0,0.00052876,120]
[320905704,1711685445324,-500.0,0.00052876,120]
[320905706,1711685445334,-180.53033416,0.00052876,120]
[320905708,1711685445343,-544.86,0.00052876,120]
[320905710,1711685445352,-334.09475956,0.00052876,120]
[320905712,1711685445361,-347.73473057,0.00052876,120]
[320905714,1711685445370,-500.0,0.00052876,120]
[320905716,1711685445379,-500.0,0.00052876,120]
[320905718,1711685445387,-500.0,0.00052876,120]
[320905720,1711685445397,-504.42557196,0.00052876,120]
[320905722,1711685445406,-500.0,0.00052876,120]
[320905724,1711685445415,-500.0,0.00052876,120]
[320905726,1711685445424,-500.0,0.00052876,120]
[320905735,1711685445504,-185.50776039,0.00052876,120]
[320905737,1711685445514,-500.0,0.00052876,120]
[320905739,1711685445523,-500.0,0.00052876,120]
[320905741,1711685445533,-500.0,0.00052876,120]
[320905743,1711685445542,-500.0,0.00052876,120]
[320905745,1711685445551,-500.0,0.00052876,120]
[320905747,1711685445562,-500.0,0.00052876,120]
[320905749,1711685445572,-500.0,0.00052876,120]
[320905751,1711685445581,-500.0,0.00052876,120]
[320905753,1711685445591,-500.0,0.00052876,120]
[320905755,1711685445600,-500.0,0.00052876,120]
[320905758,1711685445609,-500.0,0.00052876,120]
[320905761,1711685445618,-500.0,0.00052876,120]
[320905764,1711685445627,-500.0,0.00052876,120]
[320905767,1711685445636,-500.0,0.00052876,120]
[320905770,1711685445646,-490.87527228,0.00052876,120]
[320905772,1711685445655,-500.0,0.00052876,120]
[320905776,1711685445664,-500.0,0.00052876,120]
[320905778,1711685445674,-500.0,0.00052876,120]
[320905779,1711685445683,-500.0,0.00052876,120]
[320905781,1711685445691,-588.28,0.00052876,120]
[320905783,1711685445701,-650.2,0.00052876,120]
[320905785,1711685445710,-411.55299944,0.00052876,120]
[320905833,1711685446247,-150.0,0.00049954,2]
[320905835,1711685446256,-88.44700056,0.00052876,120]
[320905837,1711685446266,-1009.14,0.00052876,120]
[320905838,1711685446275,-500.0,0.00052876,120]
[320905840,1711685446284,-500.0,0.00052876,120]
[320905842,1711685446294,-500.0,0.00052876,120]
[320905843,1711685446303,-500.0,0.00052876,120]
[320905844,1711685446312,-173.40978979,0.00052876,120]
[320906131,1711686639191,-5604.52126065,0.00049,120]
[320906132,1711686639201,-485.899152,0.00049701,120]
[320906133,1711686639210,-8490.94476624,0.0005,120]
[320906134,1711686639219,-3728.18925456,0.00050646,2]
[320906135,1711686639231,-1246.0715301,0.00050646,2]
[320906146,1711686643525,-1454.16,0.00050646,2]
[320906148,1711686643585,-1869.79851634,0.00050646,2]
[320906372,1711687839713,-187.445548,0.00050657,2]
[320906374,1711687839723,-771.568246,0.0005093,120]
[320906375,1711687839732,-47.18684154,0.0005093,120]
[320906447,1711687846613,-8443.7579247,0.0005093,120]
[320906448,1711687846623,-24900.0,0.00050931,2]
[320906449,1711687846633,-153.0,0.000517,30]
[320906450,1711687846747,-153.0,0.000517,30]
[320906451,1711687846758,-153.0,0.000517,2]
[320906452,1711687846768,-153.0,0.000517,2]
[320906453,1711687846778,-177.8225191,0.0005178,120]
[320906476,1711688712238,1000.0,0.00040031,2]
[320906477,1711688734361,498.0,0.0004399,30]
[320906492,1711689032778,-33859.96004053,0.0004003,2]
[320906493,1711689032789,-19898.69337651,0.0004003,2]
[320906494,1711689032801,-23975.86570665,0.00049897,2]
[320906503,1711689038724,-924.13429335,0.00049897,2]
[320906504,1711689038737,-1649.30331185,0.0005,14]
[320906505,1711689038752,-2652.47626446,0.0005,14]
[320906506,1711689038764,-397.74843384,0.0005,120]
[320906507,1711689038778,-2523.47497776,0.0005,120]
[320906572,1711689046837,-3421.00602338,0.0005,120]
[320906625,1711690232004,-540.00150519,0.00047899,4]
[320906627,1711690232014,-150.0,0.000479,2]
[320906629,1711690232023,-578.676184,0.00049344,120]
[320906631,1711690232032,-187.445548,0.00049427,2]
[320906633,1711690232041,-44.13376304,0.00049926,2]
[320906806,1711690238038,-3848.73863417,0.00049926,2]
[320906837,1711690243152,-2.0,0.00049926,2]
[320906838,1711690243202,-1913.6973611,0.00049926,2]
[320906839,1711690243217,-3130.37932047,0.00049926,2]
[320906840,1711690243229,-266.59206349,0.00049926,2]
[320906859,1711690399214,-502.53481871,0.00049999,120]
[320906860,1711690399236,-542.40330742,0.00049999,120]
[320906861,1711690399258,-54955.06187387,0.0005,120]
[320906862,1711690411003,360.00100346,0.00037499,4]
[320906863,1711690427010,300.00083622,0.00037499,4]
[320906864,1711690449014,210.00058535,0.00037255,4]
[320906866,1711690465007,210.00058535,0.00037255,4]
[320906867,1711690475452,-206698.74792022,0.0005,120]
[320906868,1711690487016,210.00058535,0.00037255,4]
[320906869,1711690507021,210.00058535,0.00037255,4]
[320906870,1711690529032,210.00058535,0.00037255,4]
[320906872,1711690547017,210.00058535,0.00037255,4]
[320906873,1711690563034,210.00058535,0.00037255,4]
[320906874,1711690585026,330.00091983,0.00037255,4]
[320906875,1711690713621,-434.007138,0.00050533,120]
[320906876,1711690713643,-7708.43890716,0.00050788,120]
[320906877,1711690713665,-322.1774809,0.0005178,120]
[320906878,1711690713686,-354.0,0.000519,120]
[320906879,1711690713708,-1507.0,0.00052,120]
[320906880,1711690990482,1794.26,0.00044,2]
[320907063,1711691443374,-5293.46720611,0.00047178,4]
[320907064,1711691443385,-1415.2103961,0.00047179,4]
[320907065,1711691443394,-432.04990191,0.0004718,4]
[320907066,1711691443403,-1871.85432243,0.00047187,4]
[320907067,1711691443412,-150.0,0.000479,2]
[320907068,1711691443421,-434.007139,0.00049364,120]
[320907069,1711691443430,-1148.78600437,0.00049452,4]
[320907070,1711691443440,-24890.0,0.00049453,2]
[320907071,1711691443449,-411.06779266,0.00050915,4]
[320907072,1711691443458,-151.0,0.00051,2]
[320907073,1711691443468,-13533.45319201,0.00051,14]
[320907075,1711691443477,-153.0,0.00051,30]
[320907077,1711691443486,-153.0,0.00051,30]
[320907079,1711691443495,-153.0,0.00051,30]
[320907081,1711691443505,-153.0,0.00051,30]
[320907083,1711691443513,-153.1844078,0.00051151,2]
[320907085,1711691443522,-354.0,0.000515,120]
[320907087,1711691443532,-1284.72943773,0.0005178,30]
[320907088,1711691443541,-322.1774809,0.0005178,120]
[320907089,1711691443550,-153.0,0.00051781,2]
[320907090,1711691443559,-500.0,0.00051794,30]
[320907091,1711691443568,-500.0,0.00051794,30]
[320907092,1711691443577,-500.0,0.00051794,30]
[320907093,1711691443587,-408.64308004,0.00051794,30]
[320907094,1711691443596,-423.84819002,0.000519,4]
[320907095,1711691443606,-153.0,0.00051945,2]
[320907096,1711691443615,-153.0,0.00051945,2]
[320907097,1711691443625,-153.0,0.00051945,2]
[320907098,1711691443634,-153.0,0.00051945,2]
[320907099,1711691443643,-153.0,0.00051945,2]
[320907100,1711691443652,-153.0,0.00051945,2]
[320907101,1711691443661,-153.0,0.00051945,2]
[320907102,1711691443670,-153.0,0.00051945,2]
[320907103,1711691443679,-153.0,0.00051945,2]
[320907104,1711691443688,-153.0,0.00051945,2]
[320907105,1711691443697,-305.999999,0.00051973,2]
[320907106,1711691443706,-153.0,0.00051973,2]
[320907107,1711691443715,-153.0,0.00051973,2]
[320907108,1711691443724,-155.5093647,0.00051973,2]
[320907109,1711691443733,-1507.0,0.00052,120]
[320907110,1711691443743,-12088.0420862,0.0005201,120]
[320907111,1711691443782,-4854.30175139,0.0005201,120]
[320907112,1711691443799,-3440.42626656,0.0005201,120]
[320907137,1711691685933,2474.95245146,0.00040124,4]
[320907138,1711691799851,5576.0,0.00044,2]
[320907139,1711691993472,513.06779863,0.00043999,4]
[320907140,1711692074595,1609.57368918,0.00043999,4]
[320907143,1711692377967,150.0,0.000419,2]
[320907185,1711692633172,-572.06090413,0.00044,40]
[320907187,1711692633182,-912.78346035,0.00049348,2]
[320907189,1711692633192,-155.60836958,0.00049449,4]
[320907190,1711692633201,-774.22937638,0.00049449,4]
[320907191,1711692633211,-395.59788956,0.0004999,5]
[320907192,1711692633231,-501.8002263,0.0004999,5]
[320907464,1711692643538,-239.12179011,0.0004999,5]
[320907465,1711692643548,-187.445548,0.0005008,2]
[320907466,1711692643557,-732.649237,0.00050322,120]
[320907467,1711692643569,-494.64373368,0.00050999,120]
[320907468,1711692643579,-500.0,0.00050999,120]
[320907469,1711692643588,-500.0,0.00050999,120]
[320907470,1711692643597,-500.0,0.00050999,120]
[320907471,1711692643607,-557.0310937,0.00050999,120]
[320907472,1711692643616,-198.18935738,0.00050999,120]
[320907473,1711692643625,-655.07409743,0.00051,18]
[320907474,1711692643638,-48437.3817476,0.00051,18]
[320907486,1711693083919,10000.0,0.00044,2]
[320907487,1711693098487,2553.13,0.00044,2]
[320907515,1711693832876,-4208.64329639,0.00049858,2]
[320907518,1711693832932,-20691.35670361,0.00049858,2]
[320907520,1711693832942,-549.486927,0.00049873,120]
[320907522,1711693832952,-280.6690223,0.00049896,2]
[320907524,1711693832961,-3421.00602338,0.0005,120]
[320907526,1711693832971,-187.59370199,0.00050799,2]
[320907527,1711693832979,-187.59370196,0.00050824,2]
[320907528,1711693832989,-187.59370196,0.0005085,2]
[320907530,1711693832998,-187.59370196,0.00050875,2]
[320907533,1711693833006,-500.0,0.00050899,2]
[320907536,1711693833015,-28727.2,0.000509,2]
[320907538,1711693833024,-187.59370196,0.000509,2]
[320907540,1711693833032,-1000.0,0.000509,2]
[320907542,1711693833041,-407.95165605,0.00050999,4]
[320907543,1711693833050,-163.17032682,0.00050999,60]
[320907545,1711693833060,-8602.17867889,0.00051,61]
[320907635,1711693843815,-7117.21396955,0.00051,61]
[320907636,1711693843827,-3877.66907141,0.00051,61]
[320907680,1711693846626,-1261.12339152,0.00051,61]
[320907682,1711693846636,-2159.88263186,0.00051,18]
[320907899,1711695038770,-472.5,0.00044998,4]
[320907900,1711695038828,-1910.40822086,0.00044998,4]
[320907966,1711695043923,-1041.49120769,0.00044998,4]
[320907967,1711695043984,-805.64499691,0.00044998,4]
[320907968,1711695043994,-956.93766101,0.00044999,4]
[320907969,1711695044005,-871.13489107,0.00044999,4]
[320907970,1711695044016,-310.08218748,0.00045,120]
[320907971,1711695044027,-447.27139408,0.00049687,2]
[320907976,1711695046756,-23675.46124662,0.00049687,2]
[320907977,1711695046765,-412.115195,0.00049745,120]
[320907978,1711695046774,-150.0749616,0.000508,2]
[320907979,1711695046783,-150.07496156,0.00050825,2]
[320907980,1711695046792,-150.07496156,0.0005085,2]
[320907981,1711695046801,-150.07496156,0.00050875,2]
[320907983,1711695046810,-1000.0,0.000509,2]
[320907985,1711695046828,-150.07496156,0.000509,2]
[320907987,1711695046843,-19241.00313144,0.0005091,120]
[320907988,1711695046859,-435.45196325,0.00050998,2]
[320907989,1711695046873,-161.64066428,0.00050998,4]
[320907990,1711695046884,-214.46284372,0.00050998,4]
[320907991,1711695046895,-2605.4070795,0.00050998,4]
[320907992,1711695046908,-820.71676524,0.00050998,4]
[320907993,1711695046921,-294.57040885,0.00050998,4]
[320907994,1711695046935,-1610.48670662,0.00050998,4]
[320907995,1711695046948,-181.87047696,0.00050999,4]
[320907996,1711695046962,-1306.80449998,0.00050999,4]
[320907997,1711695046975,-2783.65349394,0.00050999,120]
[320907998,1711695046989,-1495.98813811,0.00050999,4]
[320907999,1711695046999,-10429.09255569,0.00051,61]
[320908000,1711695047010,-53200.6485333,0.00051,18]
[320908001,1711695047027,-3894.29450707,0.00051,18]
[320908009,1711695320201,1371.00920377,0.00040255,4]
[320908010,1711695320224,435.0,0.00040255,4]
[320908011,1711695384711,-42815.0,0.00040255,4]
[320908012,1711695453170,501.0,0.00028943,30]
[320908013,1711695477979,450.0,0.00028943,30]
[320908016,1711696028520,164.66079012,0.000299,48]
[320908066,1711696237975,-846.16435044,0.00040254,4]
[320908080,1711696239946,-499.77057786,0.00040254,4]
[320908081,1711696240004,-649.42107927,0.00040254,4]
[320908082,1711696240013,-7370.18072165,0.00040255,4]
[320908083,1711696240023,-498.27461911,0.0004029,3]
[320908084,1711696240032,-3817.25418873,0.0004029,2]
[320908085,1711696240042,-300.0,0.000403,15]
[320908086,1711696240051,-166.666666,0.0004511,2]
[320908087,1711696240060,-2323.1127093,0.00045295,2]
[320908088,1711696240070,-383.8455525,0.00048103,30]
[320908089,1711696240079,-186.28285793,0.00048114,2]
[320908090,1711696240089,-23122.06083836,0.00048121,2]
[320908168,1711696243217,-306.0,0.00048121,2]
[320908172,1711696243275,-1471.93916164,0.00048121,2]
[320908173,1711696243285,-70.86800331,0.00048214,120]
[320908174,1711696243296,-341.24719269,0.00048214,120]
[320908175,1711696243305,-186.28285791,0.00048811,2]
[320908177,1711696243315,-186.28285791,0.00049507,2]
[320908179,1711696243324,-600.0,0.000499,2]
[320908181,1711696243333,-490.51051449,0.0005,120]
[320908184,1711696243346,-4986.24364345,0.0005,120]
[320908185,1711696243356,-153.0,0.00050178,2]
[320908187,1711696243365,-186.28285791,0.00050204,2]
[320908189,1711696243374,-1000.0,0.000509,2]
[320908190,1711696243383,-186.28285791,0.000509,2]
[320908191,1711696243392,-19241.00313144,0.0005091,120]
[320908192,1711696243401,-153.0,0.00050978,2]
[320908193,1711696243411,-18.071854,0.00050998,4]
[320908210,1711696246054,-163.79862296,0.00050998,4]
[320908212,1711696246064,-161.64066428,0.00050998,4]
[320908214,1711696246073,-435.45196325,0.00050998,2]
[320908216,1711696246082,-1306.80449998,0.00050998,4]
[320908218,1711696246091,-2605.4070795,0.00050998,4]
[320908220,1711696246100,-2783.65349394,0.00050998,120]
[320908222,1711696246109,-214.46284372,0.00050998,4]
[320908223,1711696246118,-1610.48670662,0.00050998,4]
[320908225,1711696246127,-294.57040885,0.00050998,4]
[320908227,1711696246136,-820.71676524,0.00050998,4]
[320908229,1711696246145,-8488.80713685,0.00050999,120]
[320908231,1711696246154,-13291.85647521,0.00051,61]
[320908233,1711696246163,-95249.98207002,0.00051,18]
[320908448,1711697438202,-412.115196,0.0005,120]
[320908449,1711697438211,-3451.50898034,0.0005,85]
[320908450,1711697438224,-1651.75737252,0.0005,85]
[320908451,1711697438264,-188.36921019,0.0005,85]
[320908501,1711697443384,-1542.80716495,0.0005,85]
[320908502,1711697443396,-1804.323423,0.0005,85]
[320908503,1711697443408,-1001.13945008,0.0005,85]
[320908504,1711697443418,-5476.75415794,0.0005,120]
[320908505,1711697443427,-1926.7991617,0.00050058,2]
[320908506,1711697443436,-1000.0,0.000509,2]
[320908507,1711697443446,-1881.57431716,0.000509,2]
[320908508,1711697443454,-14637.61725783,0.0005091,120]
[320908527,1711698110741,-309.086397,0.0004945,120]
[320908528,1711698110762,-230.913603,0.00049699,2]
[320908529,1711698176064,-362.17036617,0.00049449,4]
[320908530,1711698176087,-1674.82963383,0.0004945,2]
[320908532,1711698243769,-250.0,0.00048999,2]
[320908533,1711698243792,-707.74931773,0.00049448,2]
[320908534,1711698243813,-1647.25068227,0.00049449,4]
[320908538,1711698375320,-26996.0,0.00049,120]
[320908622,1711698632759,-496.88037939,0.00048491,4]
[320908725,1711698638353,-1775.64007405,0.00048491,4]
[320908727,1711698638365,-295.29551674,0.00048491,4]
[320908729,1711698638376,-962.24681105,0.00048492,4]
[320908731,1711698638387,-231.814797,0.00048493,120]
[320908734,1711698638398,-735.29969317,0.00048996,4]
[320908736,1711698638410,-606.58575709,0.00048997,4]
[320908738,1711698638423,-1424.3186185,0.00048999,4]
[320908740,1711698638434,-581.12861071,0.00048999,2]
[320908743,1711698638451,-17.47796131,0.00048999,2]
[320908745,1711698638462,-1863.82203869,0.00049,120]
[320908747,1711698638475,-992.039886,0.00049,120]
[320908762,1711698638488,-148.13807431,0.00049,120]
[320908763,1711698638622,-437.94275437,0.0004945,2]
[320908764,1711698638631,-214.46284372,0.00049998,4]
[320908766,1711698638641,-161.64066428,0.00049998,4]
[320908767,1711698638651,-294.57040885,0.00049998,4]
[320908769,1711698638660,-2605.4070795,0.00049998,4]
[320908771,1711698638673,-550.21871338,0.00049998,120]
[320908772,1711698638685,-1444.61255265,0.00049998,120]
[320908773,1711698638696,-788.82222791,0.00049998,120]
[320908774,1711698638706,-1065.62599529,0.00049998,4]
[320908864,1711698643134,-539.32085091,0.00049998,4]
[320908865,1711698643150,-5.53986042,0.00049998,4]
[320908866,1711698643160,-820.71676524,0.00049998,4]
[320908867,1711698643170,-205.92108351,0.00049998,4]
[320908868,1711698643184,-467.8151094,0.00049998,4]
[320908869,1711698643197,-317.10521267,0.00049998,4]
[320908870,1711698643207,-407.95165605,0.00049998,4]
[320908871,1711698643217,-774.91386636,0.00049999,4]
[320908893,1711698643793,-14283.16847665,0.00049999,4]
[320908894,1711698643803,-29896.1502077,0.0005,2]
[320908896,1711698643812,-1714.03199993,0.0005,120]
[320908899,1711698643936,-1787.50000001,0.0005,120]
[320908945,1711698838472,5182.0,0.00040309,4]
[320908953,1711698880112,1263.54287153,0.00021,2]
[320908965,1711699033572,-380.0,0.00039351,120]
[320908966,1711699033593,-325.01431499,0.0003939,4]
[320908967,1711699033614,-155.0,0.0003939,4]
[320908968,1711699033634,-231.6446412,0.00039391,2]
[320908969,1711699033653,-368.13431762,0.00040301,4]
[320908970,1711699033674,-155.0,0.00040301,4]
[320908971,1711699033693,-300.0,0.00040307,3]
[320908972,1711699033714,-11924.62045623,0.00040308,15]
[320908973,1711699033735,-1944.0820525,0.00040418,4]
[320908974,1711699035036,919.86830492,0.0003935,4]
[320909041,1711699832836,-2096.88,0.00040532,2]
[320909049,1711699832904,-7773.54299342,0.00040532,2]
[320909051,1711699832914,-2082.97111632,0.00040532,2]
[320909053,1711699832925,-3290.09267447,0.00040532,2]
[320909056,1711699832946,-152.06568868,0.00040532,33]
[320909058,1711699832956,-155.44580615,0.00045,4]
[320909060,1711699832966,-166.666666,0.00045096,2]
[320909062,1711699832976,-250.0,0.00046149,2]
[320909064,1711699832986,-388.504429,0.00046214,120]
[320909066,1711699832996,-280.6690223,0.00046291,2]
[320909068,1711699833006,-166.666666,0.00046326,2]
[320909070,1711699833016,-166.666666,0.00047555,2]
[320909072,1711699833026,-167.6589287,0.00047565,2]
[320909074,1711699833036,-600.0,0.000476,2]
[320909076,1711699833046,-24900.0,0.00047869,2]
[320909077,1711699833056,-2236.97991489,0.0004818,90]
[320909079,1711699833066,-467.53241527,0.00048336,2]
[320909081,1711699833075,-707.74931773,0.00048436,2]
[320909083,1711699833086,-1647.25068227,0.00048437,4]
[320909085,1711699833096,-362.17036617,0.00048437,4]
[320909087,1711699833106,-8520.17707644,0.00048438,4]
[320909089,1711699833116,-473.80441262,0.00048442,4]
[320909091,1711699833125,-623.40399737,0.00048446,4]
[320909093,1711699833135,-1041.73053664,0.00048447,4]
[320909095,1711699833145,-287.46979491,0.00048448,4]
[320909097,1711699833155,-166.666666,0.00048785,2]
[320909099,1711699833167,-467.53241523,0.00048977,2]
[320909101,1711699833177,-153.0,0.00049589,2]
[320909103,1711699833187,-467.53241523,0.00049618,2]
[320909105,1711699833197,-195.28431431,0.000499,10]
[320909107,1711699833207,-154.6218583,0.00049978,2]
[320909109,1711699833216,-1000.0,0.00049999,2]
[320909111,1711699833226,-4987.27513691,0.0005,120]
[320909113,1711699833235,-155.2056421,0.0005,4]
[320909115,1711699833247,-166.666666,0.00050014,2]
[320909117,1711699833257,-153.0,0.00050078,2]
[320909119,1711699833267,-153.0,0.00050078,2]
[320909121,1711699833277,-153.0,0.00050078,2]
[320909123,1711699833287,-153.0,0.00050078,2]
[320909125,1711699833296,-153.0,0.00050078,2]
[320909127,1711699833307,-153.0,0.00050078,2]
[320909129,1711699833317,-153.0,0.00050178,2]
[320909131,1711699833326,-153.0,0.00050178,2]
[320909133,1711699833336,-153.0,0.00050178,2]
[320909135,1711699833346,-467.53241523,0.00050259,2]
[320909137,1711699833356,-153.0,0.00050411,2]
[320909139,1711699833366,-153.0,0.00050411,2]
[320909141,1711699833376,-153.0,0.00050411,2]
[320909142,1711699833386,-163.46120556,0.00050488,3]
[320909145,1711699833396,-2000.0,0.000505,120]
[320909147,1711699833406,-400.25678374,0.000505,120]
[320909214,1711699838599,-135.2123558,0.000505,120]
[320909216,1711699838611,-1464.53086046,0.000505,120]
[320909218,1711699838622,-2000.0,0.000505,120]
[320909220,1711699838631,-2000.0,0.000505,120]
[320909222,1711699838642,-2000.0,0.000505,120]
[320909224,1711699838652,-2000.0,0.000505,120]
[320909226,1711699838661,-153.0,0.000508,2]
[320909228,1711699838670,-153.0,0.000508,2]
[320909230,1711699838680,-153.0,0.000509,2]
[320909232,1711699838689,-467.53241523,0.000509,2]
[320909234,1711699838698,-1000.0,0.000509,2]
[320909235,1711699838707,-4603.38587361,0.0005091,120]
[320909236,1711699838717,-269.64062791,0.00050945,15]
[320909237,1711699838730,-2493.28093988,0.00050945,15]
[320909238,1711699838751,-837.00458476,0.00050945,15]
[320909240,1711699838760,-315.11918315,0.00050996,4]
[320909242,1711699838769,-155.73928034,0.00050996,4]
[320909244,1711699838778,-156.86537753,0.00050996,4]
[320909246,1711699838787,-511.84795858,0.00050996,4]
[320909248,1711699838797,-452.45878965,0.00050996,4]
[320909250,1711699838806,-830.19982579,0.00050997,4]
[320909287,1711699840572,-1775.20725371,0.00050997,4]
[320909288,1711699840582,-24.77622432,0.00050997,120]
[320909289,1711699840595,-475.22377568,0.00050997,120]
[320909290,1711699840606,-500.0,0.00050997,120]
[320909291,1711699840615,-500.0,0.00050997,120]
[320909292,1711699840625,-500.0,0.00050997,120]
[320909293,1711699840634,-500.0,0.00050997,120]
[320909294,1711699840644,-500.0,0.00050997,120]
[320909295,1711699840655,-184.54601455,0.00050997,120]
[320909296,1711699840664,-500.0,0.00050997,120]
[320909297,1711699840676,-195.27811654,0.00050997,120]
[320909298,1711699840685,-325.68176594,0.00050998,4]
[320909299,1711699840694,-50.18816241,0.00050998,4]
[320909300,1711699840706,-334.75102192,0.00050998,4]
[320909301,1711699840716,-22.70897808,0.00050998,4]
[320909351,1711699844084,-450.62288583,0.00050998,4]
[320909352,1711699844093,-3444.03044866,0.00050998,4]
[320909353,1711699844102,-1922.02642136,0.00050998,4]
[320909354,1711699844112,-211.49486992,0.00050998,4]
[320909355,1711699844121,-157.46249338,0.00050998,4]
[320909356,1711699844130,-157.30342708,0.00050998,4]
[320909357,1711699844139,-1633.08387512,0.00050998,4]
[320909358,1711699844149,-872.8542177,0.00050998,4]
[320909359,1711699844158,-226.53818461,0.00050998,2]
[320909360,1711699844167,-228.5521475,0.00050998,2]
[320909361,1711699844178,-325.5529119,0.00050998,4]
[320909362,1711699844187,-155.48038894,0.00050998,4]
[320909363,1711699844197,-852.41043106,0.00050998,120]
[320909364,1711699844206,-693.00309378,0.00050998,4]
[320909365,1711699844215,-620.81608877,0.00050998,4]
[320909366,1711699844225,-160.87070723,0.00050998,4]
[320909367,1711699844235,-183.12899217,0.00050998,4]
[320909368,1711699844244,-780.7394247,0.00050998,4]
[320909369,1711699844254,-157.85211395,0.00050998,4]
[320909370,1711699844264,-1000.0,0.00050998,5]
[320909371,1711699844274,-289.58748425,0.00050999,120]
[320909372,1711699844283,-500.0,0.00050999,120]
[320909373,1711699844292,-496.26808458,0.00050999,120]
[320909374,1711699844301,-2228.37,0.00050999,7]
[320909375,1711699844311,-2228.37,0.00050999,7]
[320909376,1711699844320,-2228.37,0.00050999,7]
[320909377,1711699844329,-2228.37,0.00050999,7]
[320909378,1711699844338,-2228.37,0.00050999,7]
[320909379,1711699844347,-2228.39,0.00050999,7]
[320909380,1711699844356,-2228.39,0.00050999,7]
[320909381,1711699844366,-2228.37,0.00050999,7]
[320909382,1711699844374,-163.17032682,0.00050999,60]
[320909383,1711699844384,-18223.50751041,0.00051,61]
[320909384,1711699844393,-348514.52641272,0.00051,18]
[320909385,1711699844402,-490.68976805,0.00051,4]
[320909386,1711699844411,-28727.23289142,0.00051,4]
[320909387,1711699844421,-327.0,0.00051,120]
[320909388,1711699844431,-500.0,0.00051,20]
[320909389,1711699844440,-327.0,0.00051027,120]
[320909390,1711699844449,-151.01359122,0.00051172,2]
[320909391,1711699844458,-153.0,0.00051233,2]
[320909392,1711699844467,-153.0,0.00051233,2]
[320909393,1711699844476,-153.0,0.00051233,2]
[320909394,1711699844486,-153.0,0.00051233,2]
[320909395,1711699844495,-153.0,0.00051233,2]
[320909396,1711699844505,-153.0,0.00051233,2]
[320909397,1711699844515,-153.0,0.00051233,2]
[320909398,1711699844526,-153.0,0.00051233,2]